fUST/lending_fUST_20250906
["ID","MTS","AMOUNT","RATE_DAILY","PERIOD"]
[383870596,1757149849645,-480.0,0.00013972,2]
[383870598,1757149849655,-480.0,0.00013972,2]
[383870600,1757149849665,-480.0,0.00013972,2]
[383870602,1757149849675,-480.0,0.00013972,2]
[383870605,1757149849685,-480.0,0.00013972,2]
[383870607,1757149849695,-480.0,0.00013972,2]
[383870609,1757149849705,-486.50230683,0.00013972,2]
[383870610,1757149849715,-480.0,0.00013972,2]
[383870612,1757149849724,-482.33974402,0.00013972,2]
[383870614,1757149849735,-151.0,0.00013972,2]
[383870616,1757149849744,-813.16,0.00013972,2]
[383870618,1757149849754,-480.0,0.00013972,2]
[383870620,1757149849764,-151.325215,0.00013972,2]
[383870622,1757149849774,-480.0,0.00013972,2]
[383870624,1757149849784,-480.0,0.00013972,2]
[383870626,1757149849793,-506.95,0.00013972,2]
[383870628,1757149849803,-151.0,0.00013972,2]
[383870630,1757149849813,-488.71418942,0.00013972,2]
[383870632,1757149849823,-480.0,0.00013972,2]
[383870635,1757149849834,-480.0,0.00013972,2]
[383870637,1757149849844,-480.0,0.00013972,2]
[383870639,1757149849853,-480.0,0.00013972,2]
[383870641,1757149849864,-481.41334001,0.00013972,2]
[383870643,1757149849874,-480.0,0.00013972,2]
[383870645,1757149849884,-480.0,0.00013972,2]
[383870647,1757149849894,-151.0,0.00013972,2]
[383870649,1757149849904,-480.0,0.00013972,2]
[383870651,1757149849915,-151.0,0.00013972,2]
[383870653,1757149849924,-844.33,0.00013972,2]
[383870655,1757149849933,-480.0,0.00013972,2]
[383870657,1757149849943,-480.0,0.00013972,2]
[383870659,1757149849953,-483.98627919,0.00013972,2]
[383870661,1757149849963,-151.0,0.00013972,2]
[383870663,1757149849972,-480.0,0.00013972,2]
[383870665,1757149849981,-625.47572958,0.00013972,2]
[383870667,1757149849991,-480.0,0.00013972,2]
[383870669,1757149850001,-480.0,0.00013972,2]
[383870671,1757149850010,-480.0,0.00013972,2]
[383870673,1757149850020,-480.0,0.00013972,2]
[383870675,1757149850029,-480.0,0.00013972,2]
[383870677,1757149850039,-151.0,0.00013972,2]
[383870679,1757149850049,-480.0,0.00013972,2]
[383870681,1757149850059,-900.69,0.00013972,2]
[383870683,1757149850069,-480.0,0.00013972,2]
[383870702,1757149850240,-151.0,0.00013972,2]
[383870704,1757149850250,-151.0,0.00013972,2]
[383870706,1757149850260,-1091.99,0.00013972,2]
[383870707,1757149850269,-480.0,0.00013972,2]
[383870709,1757149850278,-480.0,0.00013972,2]
[383870711,1757149850288,-480.0,0.00013972,2]
[383870713,1757149850297,-156.328558,0.00013972,2]
[383870715,1757149850307,-480.0,0.00013972,2]
[383870717,1757149850316,-156.328558,0.00013972,2]
[383870719,1757149850325,-156.328558,0.00013972,2]
[383870721,1757149850335,-480.0,0.00013972,2]
[383870723,1757149850344,-156.328558,0.00013972,2]
[383870725,1757149850353,-1614.76,0.00013972,2]
[383870727,1757149850364,-480.0,0.00013972,2]
[383870729,1757149850373,-151.0,0.00013972,2]
[383870732,1757149850384,-505.45,0.00013972,2]
[383870734,1757149850393,-357.94275568,0.00013972,2]
[383870735,1757149850402,-480.0,0.00013972,2]
[383870737,1757149850413,-480.0,0.00013972,2]
[383870739,1757149850422,-482.29679491,0.00013972,2]
[383870741,1757149850432,-482.25450929,0.00013972,2]
[383870743,1757149850441,-480.0,0.00013972,2]
[383870745,1757149850451,-162.278249,0.00013972,2]
[383870747,1757149850460,-480.0,0.00013972,2]
[383870749,1757149850470,-480.0,0.00013972,2]
[383870751,1757149850479,-480.0,0.00013972,2]
[383870753,1757149850488,-652.9,0.00013972,2]
[383870755,1757149850500,-480.0,0.00013972,2]
[383870757,1757149850509,-480.0,0.00013972,2]
[383870759,1757149850519,-591.45839224,0.00013972,2]
[383870761,1757149850529,-480.0,0.00013972,2]
[383870763,1757149850539,-5951.47,0.00013972,2]
[383870765,1757149850549,-480.0,0.00013972,2]
[383870767,1757149850559,-480.0,0.00013972,2]
[383870769,1757149850568,-254.99838623,0.00013972,2]
[383870771,1757149850578,-482.43341599,0.00013972,2]
[383870773,1757149850587,-480.0,0.00013972,2]
[383870775,1757149850597,-480.0,0.00013972,2]
[383870777,1757149850607,-480.0,0.00013972,2]
[383870779,1757149850616,-151.0,0.00013972,2]
[383870781,1757149850627,-2110.4,0.00013972,2]
[383870783,1757149850637,-4250.54,0.00013972,2]
[383870785,1757149850646,-480.0,0.00013972,2]
[383870787,1757149850656,-480.0,0.00013972,2]
[383870789,1757149850665,-480.0,0.00013972,2]
[383870791,1757149850675,-151.0,0.00013972,2]
[383870793,1757149850685,-807.0,0.00013972,2]
[383870795,1757149850694,-151.0,0.00013972,2]
[383870797,1757149850704,-480.0,0.00013972,2]
[383870799,1757149850713,-151.0,0.00013972,2]
[383870801,1757149850722,-680.04,0.00013972,2]
[383870803,1757149850732,-487.581954,0.00013972,2]
[383870805,1757149850744,-480.0,0.00013972,2]
[383870807,1757149850754,-1810.12,0.00013972,2]
[383870810,1757149850764,-480.0,0.00013972,2]
[383870812,1757149850773,-480.0,0.00013972,2]
[383870814,1757149850784,-151.0,0.00013972,2]
[383870816,1757149850794,-151.0,0.00013972,2]
[383870818,1757149850804,-151.0,0.00013972,2]
[383870820,1757149850813,-480.0,0.00013972,2]
[383870821,1757149850822,-1939.83,0.00013972,2]
[383870823,1757149850831,-481.9609336,0.00013972,2]
[383870825,1757149850840,-151.0,0.00013972,2]
[383870827,1757149850849,-480.0,0.00013972,2]
[383870829,1757149850859,-480.0,0.00013972,2]
[383870831,1757149850868,-480.0,0.00013972,2]
[383870833,1757149850879,-480.0,0.00013972,2]
[383870835,1757149850888,-480.0,0.00013972,2]
[383870837,1757149850898,-480.0,0.00013972,2]
[383870839,1757149850907,-480.0,0.00013972,2]
[383870841,1757149850916,-480.0,0.00013972,2]
[383870843,1757149850927,-480.0,0.00013972,2]
[383870845,1757149850936,-2751.04,0.00013972,2]
[383870847,1757149850946,-480.0,0.00013972,2]
[383870849,1757149850955,-480.0,0.00013972,2]
[383870851,1757149850965,-151.0,0.00013972,2]
[383870853,1757149850975,-480.0,0.00013972,2]
[383870855,1757149850984,-480.0,0.00013972,2]
[383870857,1757149850993,-480.0,0.00013972,2]
[383870859,1757149851002,-480.0,0.00013972,2]
[383870861,1757149851011,-550.93,0.00013972,2]
[383870863,1757149851020,-488.51780875,0.00013972,2]
[383870865,1757149851030,-151.0,0.00013972,2]
[383870867,1757149851039,-480.0,0.00013972,2]
[383870869,1757149851048,-480.0,0.00013972,2]
[383870871,1757149851059,-480.0,0.00013972,2]
[383870873,1757149851069,-1943.59,0.00013972,2]
[383870875,1757149851078,-480.0,0.00013972,2]
[383870877,1757149851087,-480.0,0.00013972,2]
[383870879,1757149851096,-480.0,0.00013972,2]
[383870881,1757149851105,-480.0,0.00013972,2]
[383870883,1757149851114,-151.0,0.00013972,2]
[383870885,1757149851123,-480.0,0.00013972,2]
[383870886,1757149851136,-2527.24,0.00013972,2]
[383870888,1757149851146,-151.0,0.00013972,2]
[383870890,1757149851156,-480.0,0.00013972,2]
[383870893,1757149851166,-412.62835186,0.00013972,2]
[383870894,1757149851177,-511.01,0.00013972,2]
[383870896,1757149851187,-480.0,0.00013972,2]
[383870898,1757149851196,-480.0,0.00013972,2]
[383870900,1757149851206,-480.0,0.00013972,2]
[383870902,1757149851215,-480.0,0.00013972,2]
[383870904,1757149851224,-151.0,0.00013972,2]
[383870906,1757149851234,-480.0,0.00013972,2]
[383870908,1757149851243,-480.0,0.00013972,2]
[383870910,1757149851252,-480.0,0.00013972,2]
[383870912,1757149851262,-480.0,0.00013972,2]
[383870914,1757149851271,-480.0,0.00013972,2]
[383870916,1757149851280,-480.0,0.00013972,2]
[383870918,1757149851289,-577.42,0.00013972,2]
[383870920,1757149851299,-480.0,0.00013972,2]
[383870922,1757149851308,-1094.31,0.00013972,2]
[383870924,1757149851318,-480.0,0.00013972,2]
[383870925,1757149851327,-480.0,0.00013972,2]
[383870926,1757149851336,-480.0,0.00013972,2]
[383870927,1757149851345,-480.0,0.00013972,2]
[383870928,1757149851355,-480.0,0.00013972,2]
[383870929,1757149851364,-480.0,0.00013972,2]
[383870930,1757149851373,-480.0,0.00013972,2]
[383870931,1757149851383,-480.0,0.00013972,2]
[383870932,1757149851393,-480.0,0.00013972,2]
[383870933,1757149851402,-480.0,0.00013972,2]
[383870935,1757149851412,-480.0,0.00013972,2]
[383870937,1757149851421,-12658.28,0.00013972,2]
[383870939,1757149851430,-480.0,0.00013972,2]
[383870941,1757149851440,-480.0,0.00013972,2]
[383870943,1757149851450,-480.0,0.00013972,2]
[383870945,1757149851459,-480.0,0.00013972,2]
[383870947,1757149851469,-1951.32,0.00013972,2]
[383870949,1757149851479,-843.03,0.00013972,2]
[383870951,1757149851488,-480.0,0.00013972,2]
[383870953,1757149851497,-480.0,0.00013972,2]
[383870955,1757149851507,-480.0,0.00013972,2]
[383870957,1757149851516,-583.06604095,0.00013972,2]
[383870959,1757149851525,-1902.79,0.00013972,2]
[383870961,1757149851535,-480.0,0.00013972,2]
[383870963,1757149851544,-480.0,0.00013972,2]
[383870965,1757149851553,-738.21,0.00013972,2]
[383870967,1757149851562,-521.2,0.00013972,2]
[383870969,1757149851572,-483.96170334,0.00013972,2]
[383870971,1757149851581,-480.0,0.00013972,2]
[383870973,1757149851591,-480.0,0.00013972,2]
[383870975,1757149851601,-716.85,0.00013972,2]
[383870977,1757149851611,-480.0,0.00013972,2]
[383870980,1757149851621,-480.0,0.00013972,2]
[383870982,1757149851631,-480.0,0.00013972,2]
[383870984,1757149851640,-480.0,0.00013972,2]
[383870986,1757149851650,-480.0,0.00013972,2]
[383870988,1757149851659,-480.0,0.00013972,2]
[383870990,1757149851671,-480.0,0.00013972,2]
[383870992,1757149851680,-480.0,0.00013972,2]
[383870994,1757149851689,-480.0,0.00013972,2]
[383870995,1757149851698,-480.0,0.00013972,2]
[383870997,1757149851707,-480.0,0.00013972,2]
[383870999,1757149851716,-151.0,0.00013972,2]
[383871001,1757149851726,-480.0,0.00013972,2]
[383871003,1757149851735,-480.0,0.00013972,2]
[383871005,1757149851744,-529.23,0.00013972,2]
[383871007,1757149851753,-480.0,0.00013972,2]
[383871009,1757149851763,-480.0,0.00013972,2]
[383871011,1757149851771,-151.0,0.00013972,2]
[383871013,1757149851781,-480.0,0.00013972,2]
[383871015,1757149851790,-480.0,0.00013972,2]
[383871017,1757149851800,-153.858091,0.00013972,2]
[383871019,1757149851809,-480.0,0.00013972,2]
[383871022,1757149851819,-480.0,0.00013972,2]
[383871024,1757149851828,-579.14,0.00013972,2]
[383871026,1757149851837,-480.0,0.00013972,2]
[383871028,1757149851846,-1646.09,0.00013972,2]
[383871030,1757149851856,-480.0,0.00013972,2]
[383871032,1757149851865,-482.92247789,0.00013972,2]
[383871034,1757149851874,-151.0,0.00013972,2]
[383871036,1757149851883,-480.0,0.00013972,2]
[383871038,1757149851892,-480.0,0.00013972,2]
[383871040,1757149851901,-484.86953279,0.00013972,2]
[383871042,1757149851911,-679.59,0.00013972,2]
[383871044,1757149851920,-356.46715524,0.00013972,2]
[383871046,1757149851930,-483.24575609,0.00013972,2]
[383871048,1757149851939,-1340.35,0.00013972,2]
[383871050,1757149851948,-480.0,0.00013972,2]
[383871052,1757149851958,-480.0,0.00013972,2]
[383871054,1757149851969,-2040.67,0.00013972,2]
[383871056,1757149851980,-480.0,0.00013972,2]
[383871058,1757149851990,-480.0,0.00013972,2]
[383871060,1757149851999,-480.0,0.00013972,2]
[383871062,1757149852008,-480.0,0.00013972,2]
[383871064,1757149852018,-480.0,0.00013972,2]
[383871066,1757149852027,-480.0,0.00013972,2]
[383871068,1757149852037,-480.84350196,0.00013972,2]
[383871070,1757149852046,-480.0,0.00013972,2]
[383871072,1757149852056,-480.0,0.00013972,2]
[383871074,1757149852066,-602.34,0.00013972,2]
[383871076,1757149852075,-480.0,0.00013972,2]
[383871078,1757149852084,-481.66319009,0.00013972,2]
[383871080,1757149852093,-151.0,0.00013972,2]
[383871082,1757149852103,-480.0,0.00013972,2]
[383871084,1757149852114,-484.33138824,0.00013972,2]
[383871086,1757149852126,-282.515431,0.00013972,2]
[383871088,1757149852146,-282.515431,0.00013972,2]
[383871089,1757149852163,-480.0,0.00013972,2]
[383871091,1757149852172,-781.82,0.00013972,2]
[383871093,1757149852183,-282.515431,0.00013972,2]
[383871095,1757149852192,-480.0,0.00013972,2]
[383871097,1757149852202,-282.515431,0.00013972,2]
[383871099,1757149852212,-655.62,0.00013972,2]
[383871101,1757149852221,-480.0,0.00013972,2]
[383871104,1757149852232,-480.0,0.00013972,2]
[383871106,1757149852242,-151.0,0.00013972,2]
[383871108,1757149852252,-600.22,0.00013972,2]
[383871110,1757149852261,-481.01,0.00013972,2]
[383871112,1757149852271,-156.251177,0.00013972,2]
[383871114,1757149852280,-480.0,0.00013972,2]
[383871116,1757149852289,-480.0,0.00013972,2]
[383871118,1757149852299,-156.251177,0.00013972,2]
[383871120,1757149852311,-480.0,0.00013972,2]
[383871122,1757149852319,-156.251177,0.00013972,2]
[383871124,1757149852329,-480.0,0.00013972,2]
[383871126,1757149852338,-6191.17,0.00013972,2]
[383871128,1757149852348,-156.251177,0.00013972,2]
[383871130,1757149852358,-480.0,0.00013972,2]
[383871132,1757149852367,-480.0,0.00013972,2]
[383871134,1757149852377,-151.0,0.00013972,2]
[383871136,1757149852386,-151.0,0.00013972,2]
[383871138,1757149852396,-334.617751,0.00013972,2]
[383871139,1757149852405,-151.0,0.00013972,2]
[383871142,1757149852415,-334.617751,0.00013972,2]
[383871143,1757149852424,-151.0,0.00013972,2]
[383871145,1757149852433,-480.0,0.00013972,2]
[383871147,1757149852443,-480.0,0.00013972,2]
[383871149,1757149852452,-480.0,0.00013972,2]
[383871151,1757149852462,-8716.9,0.00013972,2]
[383871153,1757149852471,-334.617751,0.00013972,2]
[383871155,1757149852480,-151.0,0.00013972,2]
[383871157,1757149852490,-334.617751,0.00013972,2]
[383871159,1757149852499,-860.02,0.00013972,2]
[383871161,1757149852509,-100000.0,0.0001399,2]
[383871163,1757149852518,-151.0,0.0001399,2]
[383871165,1757149852527,-151.0,0.0001399,2]
[383871167,1757149852536,-151.0,0.0001399,2]
[383871169,1757149852546,-151.0,0.0001399,2]
[383871171,1757149852555,-151.0,0.0001399,2]
[383871173,1757149852565,-282.515431,0.0001399,2]
[383871175,1757149852575,-282.515431,0.0001399,2]
[383871178,1757149852585,-282.515431,0.0001399,2]
[383871179,1757149852595,-282.515431,0.0001399,2]
[383871182,1757149852606,-156.251177,0.0001399,2]
[383871184,1757149852616,-156.251177,0.0001399,2]
[383871185,1757149852626,-156.251177,0.0001399,2]
[383871187,1757149852635,-156.251177,0.0001399,2]
[383871189,1757149852645,-22793.42107894,0.00014084,2]
[383871191,1757149852654,-151.0,0.00014084,2]
[383871193,1757149852664,-151.0,0.00014084,2]
[383871195,1757149852674,-334.617751,0.00014084,2]
[383871197,1757149852683,-179.206259,0.00014084,2]
[383871199,1757149852692,-334.617751,0.00014084,2]
[383871201,1757149852701,-243.741908,0.00014084,2]
[383871203,1757149852710,-334.617751,0.00014084,2]
[383871205,1757149852719,-334.617751,0.00014084,2]
[383871207,1757149852728,-160.0,0.0001412,2]
[383871209,1757149852738,-160.0,0.0001412,2]
[383871211,1757149852748,-160.0,0.0001412,2]
[383871213,1757149852757,-160.0,0.0001412,2]
[383871215,1757149852767,-203.21852024,0.0001412,2]
[383871217,1757149852776,-160.0,0.0001412,2]
[383871219,1757149852786,-160.0,0.0001412,2]
[383871222,1757149852796,-1000.0,0.00014221,2]
[383871224,1757149852806,-500.57562405,0.00014221,2]
[383871226,1757149852816,-512.6960186,0.00014221,2]
[383871228,1757149852827,-1000.0,0.00014221,2]
[383871230,1757149852836,-486.09014822,0.00014221,2]
[383871232,1757149852845,-400.72478266,0.00014221,2]
[383871234,1757149852854,-521.33749465,0.00014221,2]
[383871235,1757149852863,-1000.0,0.00014221,2]
[383871237,1757149852873,-1000.0,0.00014221,2]
[383871239,1757149852883,-500.0,0.00014221,2]
[383871241,1757149852893,-500.0,0.00014221,2]
[383871243,1757149852902,-500.0,0.00014221,2]
[383871245,1757149852912,-503.0665566,0.00014221,2]
[383871247,1757149852921,-504.62796832,0.00014221,2]
[383871249,1757149852930,-500.73139972,0.00014221,2]
[383871251,1757149852940,-1009.16508145,0.00014221,2]
[383871253,1757149852950,-1000.0,0.00014221,2]
[383871255,1757149852959,-501.02794123,0.00014221,2]
[383871257,1757149852968,-1000.0,0.00014221,2]
[383871259,1757149852978,-500.95843424,0.00014221,2]
[383871261,1757149852986,-501.67970441,0.00014221,2]
[383871263,1757149852996,-500.0,0.00014221,2]
[383871265,1757149853005,-1000.0,0.00014221,2]
[383871267,1757149853014,-1000.0,0.00014221,2]
[383871269,1757149853023,-1000.0,0.00014221,2]
[383871271,1757149853033,-1000.0,0.00014221,2]
[383871273,1757149853043,-500.0,0.00014221,2]
[383871275,1757149853053,-661.22,0.00014246,2]
[383871277,1757149853062,-480.0,0.00014246,2]
[383871279,1757149853071,-480.0,0.00014246,2]
[383871281,1757149853081,-480.0,0.00014246,2]
[383871283,1757149853090,-480.0,0.00014246,2]
[383871285,1757149853100,-480.0,0.00014246,2]
[383871287,1757149853109,-480.0,0.00014246,2]
[383871289,1757149853119,-480.0,0.00014246,2]
[383871291,1757149853131,-480.0,0.00014246,2]
[383871293,1757149853141,-480.0,0.00014246,2]
[383871295,1757149853150,-480.0,0.00014246,2]
[383871297,1757149853159,-480.0,0.00014246,2]
[383871299,1757149853170,-480.0,0.00014246,2]
[383871301,1757149853180,-491.69,0.00014246,2]
[383871303,1757149853189,-480.0,0.00014246,2]
[383871305,1757149853199,-480.0,0.00014246,2]
[383871307,1757149853208,-480.0,0.00014246,2]
[383871309,1757149853219,-480.0,0.00014246,2]
[383871311,1757149853229,-152.100789,0.00014246,2]
[383871313,1757149853237,-151.0,0.00014246,2]
[383871315,1757149853247,-480.0,0.00014246,2]
[383871317,1757149853256,-485.98391718,0.00014246,2]
[383871319,1757149853266,-280.09,0.00014246,2]
[383871320,1757149853275,-480.0,0.00014246,2]
[383871322,1757149853284,-480.0,0.00014246,2]
[383871324,1757149853293,-151.967764,0.00014246,2]
[383871326,1757149853302,-151.0,0.00014246,2]
[383871328,1757149853314,-480.0,0.00014246,2]
[383871330,1757149853324,-480.0,0.00014246,2]
[383871332,1757149853333,-480.0,0.00014246,2]
[383871334,1757149853342,-480.0,0.00014246,2]
[383871336,1757149853352,-480.0,0.00014246,2]
[383871338,1757149853361,-480.0,0.00014246,2]
[383871340,1757149853371,-480.0,0.00014246,2]
[383871342,1757149853380,-480.0,0.00014246,2]
[383871344,1757149853390,-480.0,0.00014246,2]
[383871346,1757149853400,-480.0,0.00014246,2]
[383871348,1757149853409,-480.0,0.00014246,2]
[383871350,1757149853418,-492.33394045,0.00014246,2]
[383871352,1757149853427,-480.0,0.00014246,2]
[383871354,1757149853438,-153.09874,0.00014246,2]
[383871356,1757149853448,-151.0,0.00014246,2]
[383871358,1757149853457,-480.0,0.00014246,2]
[383871360,1757149853467,-483.28175647,0.00014246,2]
[383871362,1757149853476,-151.0,0.00014246,2]
[383871364,1757149853486,-153.197403,0.00014246,2]
[383871366,1757149853495,-208.232945,0.00014246,2]
[383871368,1757149853505,-480.0,0.00014246,2]
[383871385,1757149853653,-649.46,0.00014246,2]
[383871387,1757149853663,-292.82371864,0.00014246,2]
[383871389,1757149853672,-237.199975,0.00014246,2]
[383871391,1757149853682,-480.0,0.00014246,2]
[383871392,1757149853691,-237.199975,0.00014246,2]
[383871394,1757149853701,-480.0,0.00014246,2]
[383871396,1757149853710,-237.199975,0.00014246,2]
[383871398,1757149853720,-237.199975,0.00014246,2]
[383871400,1757149853729,-151.0,0.00014246,2]
[383871402,1757149853739,-480.0,0.00014246,2]
[383871404,1757149853749,-480.0,0.00014246,2]
[383871406,1757149853759,-151.0,0.00014246,2]
[383871409,1757149853769,-480.0,0.00014246,2]
[383871410,1757149853778,-151.0,0.00014246,2]
[383871412,1757149853788,-480.0,0.00014246,2]
[383871414,1757149853798,-157.14631557,0.00014246,2]
[383871416,1757149853807,-365.58293941,0.00014246,2]
[383871418,1757149853816,-480.0,0.00014246,2]
[383871420,1757149853826,-690.37,0.00014246,2]
[383871422,1757149853836,-151.0,0.00014246,2]
[383871424,1757149853845,-151.0,0.00014246,2]
[383871426,1757149853855,-480.0,0.00014246,2]
[383871428,1757149853864,-480.0,0.00014246,2]
[383871430,1757149853873,-480.0,0.00014246,2]
[383871432,1757149853884,-627.02,0.00014246,2]
[383871434,1757149853894,-480.0,0.00014246,2]
[383871436,1757149853903,-480.0,0.00014246,2]
[383871438,1757149853912,-468.12031959,0.00014246,2]
[383871440,1757149853922,-558.88,0.00014246,2]
[383871442,1757149853931,-483.10107977,0.00014246,2]
[383871444,1757149853940,-495.79059818,0.00014246,2]
[383871446,1757149853950,-1192.22,0.00014246,2]
[383871448,1757149853960,-480.0,0.00014246,2]
[383871450,1757149853970,-480.0,0.00014246,2]
[383871452,1757149853979,-553.00190724,0.00014246,2]
[383871454,1757149853988,-480.0,0.00014246,2]
[383871456,1757149853998,-480.0,0.00014246,2]
[383871458,1757149854007,-480.0,0.00014246,2]
[383871459,1757149854016,-480.0,0.00014246,2]
[383871461,1757149854026,-241.489433,0.00014246,2]
[383871463,1757149854035,-241.489433,0.00014246,2]
[383871465,1757149854044,-241.489433,0.00014246,2]
[383871467,1757149854055,-241.489433,0.00014246,2]
[383871469,1757149854065,-151.0,0.00014246,2]
[383871471,1757149854074,-480.0,0.00014246,2]
[383871473,1757149854085,-495.45141881,0.00014246,2]
[383871475,1757149854095,-480.0,0.00014246,2]
[383871477,1757149854104,-169.31846166,0.00014246,2]
[383871479,1757149854114,-480.0,0.00014246,2]
[383871481,1757149854125,-480.0,0.00014246,2]
[383871483,1757149854138,-151.0,0.00014246,2]
[383871485,1757149854148,-480.0,0.00014246,2]
[383871487,1757149854158,-151.0,0.00014246,2]
[383871489,1757149854168,-484.22909381,0.00014246,2]
[383871491,1757149854180,-480.0,0.00014246,2]
[383871493,1757149854189,-239.43012099,0.00014246,2]
[383871528,1757149854527,-485.0526843,0.00013698,2]
[383871530,1757149854537,-240.56987901,0.00014246,2]
[383871532,1757149854547,-574.18,0.00014246,2]
[383871534,1757149854557,-480.0,0.00014246,2]
[383871536,1757149854567,-480.0,0.00014246,2]
[383871538,1757149854576,-480.0,0.00014246,2]
[383871540,1757149854585,-480.0,0.00014246,2]
[383871542,1757149854594,-480.0,0.00014246,2]
[383871544,1757149854604,-480.0,0.00014246,2]
[383871546,1757149854613,-136.19743669,0.00014246,2]
[383871556,1757149854704,-157.68064,0.00013972,2]
[383871558,1757149854713,-343.80256331,0.00014246,2]
[383871560,1757149854723,-151.0,0.00014246,2]
[383871562,1757149854733,-480.0,0.00014246,2]
[383871564,1757149854742,-483.47251557,0.00014246,2]
[383871566,1757149854751,-480.0,0.00014246,2]
[383871568,1757149854761,-480.0,0.00014246,2]
[383871570,1757149854771,-480.0,0.00014246,2]
[383871572,1757149854780,-481.04001931,0.00014246,2]
[383871574,1757149854789,-480.0,0.00014246,2]
[383871576,1757149854799,-151.0,0.00014246,2]
[383871578,1757149854808,-480.0,0.00014246,2]
[383871580,1757149854818,-319.62515827,0.00014246,2]
[383871582,1757149854827,-208.82657208,0.00014246,2]
[383871584,1757149854839,-271.17342792,0.00014246,2]
[383871586,1757149854848,-143.90089101,0.00014246,2]
[383871588,1757149854863,-336.09910899,0.00014246,2]
[383871590,1757149854873,-475.40071827,0.00014246,2]
[383871611,1757149855073,-14.9290901,0.00014246,2]
[383871613,1757149855082,-231.02744279,0.00014246,2]
[383871615,1757149855092,-480.0,0.00014246,2]
[383871617,1757149855101,-480.0,0.00014246,2]
[383871619,1757149855110,-538.97,0.00014246,2]
[383871621,1757149855120,-537.44,0.00014246,2]
[383871623,1757149855132,-480.0,0.00014246,2]
[383871625,1757149855142,-151.0,0.00014246,2]
[383871627,1757149855152,-969.83,0.00014246,2]
[383871629,1757149855161,-553.94,0.00014246,2]
[383871631,1757149855171,-480.0,0.00014246,2]
[383871633,1757149855181,-480.0,0.00014246,2]
[383871635,1757149855191,-480.0,0.00014246,2]
[383871637,1757149855200,-480.0,0.00014246,2]
[383871638,1757149855212,-151.0,0.00014246,2]
[383871641,1757149855222,-389.1181598,0.00014246,2]
[383871643,1757149855234,-90.8818402,0.00014246,2]
[383871645,1757149855244,-480.0,0.00014246,2]
[383871647,1757149855253,-480.0,0.00014246,2]
[383871648,1757149855262,-480.0,0.00014246,2]
[383871651,1757149855272,-480.0,0.00014246,2]
[383871652,1757149855282,-480.0,0.00014246,2]
[383871654,1757149855291,-480.0,0.00014246,2]
[383871656,1757149855301,-480.0,0.00014246,2]
[383871658,1757149855310,-480.0,0.00014246,2]
[383871660,1757149855320,-480.0,0.00014246,2]
[383871662,1757149855329,-153.22025518,0.00014246,2]
[383871664,1757149855341,-326.77974482,0.00014246,2]
[383871666,1757149855350,-693.75,0.00014246,2]
[383871668,1757149855359,-480.0,0.00014246,2]
[383871670,1757149855369,-484.05013618,0.00014246,2]
[383871672,1757149855378,-105.87011901,0.00014246,2]